[Event "Early-Titled-Tuesday-Blitz-February-20-2024"]
[Site "Chess.com"]
[Date "2024.02.20"]
[Round "3"]
[White "mr_gustavo"]
[Black "hansen"]
[Result "1-0"]
[WhiteElo "2733"]
[BlackElo "2916"]
[TimeControl "180+1"]
[EndTime "8:26:51 PST"]
[Termination "mr_gustavo won by resignation"]

1. e4 {[%clk 0:03:00.9]} 1... d6 {[%clk 0:02:58.4]} 2. d4 {[%clk 0:03:00.8]}
2... Nf6 {[%clk 0:02:58.7]} 3. Nc3 {[%clk 0:03:00.9]} 3... e5 {[%clk 0:02:59]}
4. Nge2 {[%clk 0:02:59.4]} 4... Be7 {[%clk 0:02:58.8]} 5. h3 {[%clk 0:02:59.5]}
5... O-O {[%clk 0:02:59.1]} 6. g4 {[%clk 0:02:53.2]} 6... c6 {[%clk 0:02:59.1]}
7. Bg2 {[%clk 0:02:53.1]} 7... b5 {[%clk 0:02:59.1]} 8. O-O {[%clk 0:02:48.4]}
8... b4 {[%clk 0:02:59.3]} 9. Nb1 {[%clk 0:02:48.1]} 9... a5 {[%clk 0:02:59.5]}
10. Be3 {[%clk 0:02:46.4]} 10... Ba6 {[%clk 0:02:56.9]} 11. Re1 {[%clk 0:02:46]}
11... Nbd7 {[%clk 0:02:56.7]} 12. Ng3 {[%clk 0:02:45.1]} 12... g6 {[%clk
0:02:56.9]} 13. Nd2 {[%clk 0:02:43.6]} 13... Qc7 {[%clk 0:02:52.9]} 14. a3
{[%clk 0:02:40]} 14... bxa3 {[%clk 0:02:46.9]} 15. Rxa3 {[%clk 0:02:28.8]} 15...
d5 {[%clk 0:02:47.1]} 16. Ra1 {[%clk 0:02:27.1]} 16... dxe4 {[%clk 0:02:45.5]}
17. Ndxe4 {[%clk 0:02:24.1]} 17... Nd5 {[%clk 0:02:45.8]} 18. Bh6 {[%clk
0:02:17.8]} 18... Rfe8 {[%clk 0:02:46.1]} 19. dxe5 {[%clk 0:01:59.2]} 19... Nxe5
{[%clk 0:02:41.3]} 20. b3 {[%clk 0:01:58.7]} 20... Bb4 {[%clk 0:02:37.2]} 21. c4
{[%clk 0:01:52.6]} 21... Nc3 {[%clk 0:02:37.3]} 22. Nf6+ {[%clk 0:01:48.4]}
22... Kh8 {[%clk 0:02:37.2]} 23. Nxe8 {[%clk 0:01:39.6]} 23... Rxe8 {[%clk
0:02:37.6]} 24. Qd4 {[%clk 0:01:26.9]} 24... f6 {[%clk 0:02:26.9]} 25. Kh1
{[%clk 0:01:09.5]} 25... Kg8 {[%clk 0:02:19.1]} 26. Ne4 {[%clk 0:00:54]} 26...
Nxe4 {[%clk 0:02:16.1]} 27. Rxe4 {[%clk 0:00:51.9]} 27... Rd8 {[%clk 0:02:15.7]}
28. Qe3 {[%clk 0:00:50.8]} 28... Bd2 {[%clk 0:02:11.9]} 29. Qxd2 {[%clk
0:00:45.1]} 29... Rxd2 {[%clk 0:02:12.8]} 30. Bxd2 {[%clk 0:00:45.4]} 30... Qb6
{[%clk 0:02:12.9]} 31. Re3 {[%clk 0:00:40.3]} 31... Qd4 {[%clk 0:02:06.6]} 32.
Bc3 {[%clk 0:00:40.2]} 32... Qf4 {[%clk 0:02:01.6]} 33. Kg1 {[%clk 0:00:40.8]}
33... Bc8 {[%clk 0:01:47.5]} 34. Rxa5 {[%clk 0:00:39.3]} 34... Bd7 {[%clk
0:01:43.9]} 35. Ra8+ {[%clk 0:00:30.6]} 35... Kf7 {[%clk 0:01:34.9]} 36. Bxe5
{[%clk 0:00:29.9]} 36... fxe5 {[%clk 0:01:32.8]} 37. Rf3 {[%clk 0:00:30.1]} 1-0

[Event "Early-Titled-Tuesday-Blitz-February-20-2024"]
[Site "Chess.com"]
[Date "2024.02.20"]
[Round "3"]
[White "VinzentSpitzl"]
[Black "C_K_G"]
[Result "1-0"]
[WhiteElo "2542"]
[BlackElo "2172"]
[TimeControl "180+1"]
[EndTime "8:26:52 PST"]
[Termination "VinzentSpitzl won by resignation"]

1. e4 {[%clk 0:03:00.9]} 1... c5 {[%clk 0:03:00.3]} 2. Nf3 {[%clk 0:03:01]} 2...
d6 {[%clk 0:03:00.8]} 3. d4 {[%clk 0:03:01.3]} 3... cxd4 {[%clk 0:03:01.7]} 4.
Nxd4 {[%clk 0:03:02.2]} 4... Nf6 {[%clk 0:03:02.6]} 5. Nc3 {[%clk 0:03:02.8]}
5... a6 {[%clk 0:03:03.1]} 6. Bg5 {[%clk 0:03:00.3]} 6... e6 {[%clk 0:02:59.2]}
7. Qe2 {[%clk 0:03:00.2]} 7... Nbd7 {[%clk 0:02:57.3]} 8. f4 {[%clk 0:02:59.6]}
8... Qc7 {[%clk 0:02:57]} 9. O-O-O {[%clk 0:02:59.5]} 9... b5 {[%clk 0:02:53.7]}
10. g4 {[%clk 0:02:58.6]} 10... Bb7 {[%clk 0:02:53.1]} 11. Bg2 {[%clk
0:02:58.3]} 11... b4 {[%clk 0:02:51.7]} 12. Nd5 {[%clk 0:02:57.7]} 12... Qa5
{[%clk 0:02:32.4]} 13. Kb1 {[%clk 0:02:28.7]} 13... h6 {[%clk 0:01:55.6]} 14.
Bxf6 {[%clk 0:02:15.4]} 14... gxf6 {[%clk 0:01:54.3]} 15. Rhe1 {[%clk
0:02:06.8]} 15... Bg7 {[%clk 0:01:47.7]} 16. Nf5 {[%clk 0:01:51.9]} 16... Kf8
{[%clk 0:01:37.9]} 17. Nxd6 {[%clk 0:01:43.2]} 17... exd5 {[%clk 0:01:28.3]} 18.
Nxb7 {[%clk 0:01:38.5]} 18... Qc7 {[%clk 0:01:21.5]} 19. exd5 {[%clk 0:01:36.3]}
19... Qxb7 {[%clk 0:00:47.4]} 20. d6 {[%clk 0:01:28.1]} 20... Qa7 {[%clk
0:00:44.2]} 21. Bxa8 {[%clk 0:01:23]} 21... Qxa8 {[%clk 0:00:44.2]} 22. Qe7+
{[%clk 0:01:21.9]} 22... Kg8 {[%clk 0:00:43.8]} 23. Qxd7 {[%clk 0:01:21.7]}
23... Kh7 {[%clk 0:00:35.9]} 24. Qf5+ {[%clk 0:01:19.4]} 24... Kg8 {[%clk
0:00:35.2]} 25. d7 {[%clk 0:01:19.7]} 1-0

[Event "Early-Titled-Tuesday-Blitz-February-20-2024"]
[Site "Chess.com"]
[Date "2024.02.20"]
[Round "3"]
[White "DAVIDHDZSTS"]
[Black "Journey_to_GrandMaster_YT"]
[Result "1-0"]
[WhiteElo "1964"]
[BlackElo "2513"]
[TimeControl "180+1"]
[EndTime "8:26:53 PST"]
[Termination "DAVIDHDZSTS won by checkmate"]

1. d4 {[%clk 0:02:58.5]} 1... d6 {[%clk 0:03:00.2]} 2. Nc3 {[%clk 0:02:57.1]}
2... Nf6 {[%clk 0:03:00.1]} 3. Bf4 {[%clk 0:02:56.7]} 3... Nbd7 {[%clk
0:02:58.3]} 4. e3 {[%clk 0:02:55.2]} 4... c5 {[%clk 0:02:57.9]} 5. Nf3 {[%clk
0:02:52.8]} 5... Qa5 {[%clk 0:02:56.6]} 6. Nd2 {[%clk 0:02:50.1]} 6... e5 {[%clk
0:02:54.3]} 7. dxe5 {[%clk 0:02:43.4]} 7... dxe5 {[%clk 0:02:53.8]} 8. Nc4
{[%clk 0:02:41.4]} 8... Qc7 {[%clk 0:02:53.2]} 9. Bg3 {[%clk 0:02:32.3]} 9... a6
{[%clk 0:02:52.2]} 10. Qf3 {[%clk 0:02:20.5]} 10... Rb8 {[%clk 0:02:42.5]} 11.
Nd5 {[%clk 0:02:11.7]} 11... Nxd5 {[%clk 0:02:22.5]} 12. Qxd5 {[%clk 0:02:11.5]}
12... f6 {[%clk 0:02:23.1]} 13. O-O-O {[%clk 0:01:57.8]} 13... b5 {[%clk
0:01:37]} 14. Qe6+ {[%clk 0:01:33.3]} 14... Kd8 {[%clk 0:01:36.6]} 15. Bxe5
{[%clk 0:01:00.2]} 15... fxe5 {[%clk 0:01:09.1]} 16. Nxe5 {[%clk 0:00:54.6]}
16... Qb6 {[%clk 0:00:59.9]} 17. Rxd7+ {[%clk 0:00:24]} 17... Bxd7 {[%clk
0:01:00.8]} 18. Qxd7# {[%clk 0:00:24.2]} 1-0

[Event "Early-Titled-Tuesday-Blitz-February-20-2024"]
[Site "Chess.com"]
[Date "2024.02.20"]
[Round "3"]
[White "Dinamo3"]
[Black "cukin84"]
[Result "1-0"]
[WhiteElo "2519"]
[BlackElo "2242"]
[TimeControl "180+1"]
[EndTime "8:26:55 PST"]
[Termination "Dinamo3 won by resignation"]

1. c4 {[%clk 0:03:00.9]} 1... f5 {[%clk 0:02:59.4]} 2. Nc3 {[%clk 0:02:39.7]}
2... Nf6 {[%clk 0:02:58.8]} 3. g3 {[%clk 0:02:39.1]} 3... g6 {[%clk 0:02:58.6]}
4. Bg2 {[%clk 0:02:39.5]} 4... Bg7 {[%clk 0:02:58]} 5. d3 {[%clk 0:02:40.1]}
5... O-O {[%clk 0:02:57.4]} 6. e3 {[%clk 0:02:40.6]} 6... e5 {[%clk 0:02:57]} 7.
Nge2 {[%clk 0:02:41.3]} 7... d6 {[%clk 0:02:54.8]} 8. O-O {[%clk 0:02:41.8]}
8... c6 {[%clk 0:02:55.2]} 9. Rb1 {[%clk 0:02:41.1]} 9... a5 {[%clk 0:02:54.5]}
10. a3 {[%clk 0:02:41.2]} 10... g5 {[%clk 0:02:45.7]} 11. f4 {[%clk 0:02:27.4]}
11... exf4 {[%clk 0:02:38.9]} 12. gxf4 {[%clk 0:02:10.1]} 12... g4 {[%clk
0:02:36.8]} 13. b4 {[%clk 0:02:05]} 13... axb4 {[%clk 0:02:35.9]} 14. axb4
{[%clk 0:02:05.9]} 14... Qe8 {[%clk 0:02:30.6]} 15. b5 {[%clk 0:02:05.7]} 15...
c5 {[%clk 0:02:06.4]} 16. Nd5 {[%clk 0:01:59.6]} 16... Nxd5 {[%clk 0:02:04.3]}
17. Bxd5+ {[%clk 0:02:00.5]} 17... Kh8 {[%clk 0:02:04.4]} 18. Ng3 {[%clk
0:01:49.6]} 18... Nd7 {[%clk 0:02:01.4]} 19. Bg2 {[%clk 0:01:35.9]} 19... h5
{[%clk 0:01:56.4]} 20. e4 {[%clk 0:01:35.5]} 20... Bd4+ {[%clk 0:01:49.3]} 21.
Kh1 {[%clk 0:01:35.2]} 21... fxe4 {[%clk 0:01:36.5]} 22. Nxe4 {[%clk 0:01:32.3]}
22... Qg6 {[%clk 0:01:30.6]} 23. Bb2 {[%clk 0:01:11.2]} 23... Ra2 {[%clk
0:01:27.6]} 24. Bxd4+ {[%clk 0:01:10.2]} 24... cxd4 {[%clk 0:01:28.5]} 25. Qb3
{[%clk 0:01:04.8]} 25... Re2 {[%clk 0:01:23.1]} 26. Rb2 {[%clk 0:00:48.1]} 26...
Re3 {[%clk 0:01:21.6]} 27. Qa3 {[%clk 0:00:41.9]} 27... Nc5 {[%clk 0:01:14.3]}
28. Nxc5 {[%clk 0:00:39.5]} 28... dxc5 {[%clk 0:01:15.2]} 29. Qxc5 {[%clk
0:00:39.8]} 29... Rxd3 {[%clk 0:01:10.5]} 30. Qxf8+ {[%clk 0:00:39.7]} 30... Kh7
{[%clk 0:01:09.6]} 31. Qxc8 {[%clk 0:00:39.5]} 1-0

[Event "Early-Titled-Tuesday-Blitz-February-20-2024"]
[Site "Chess.com"]
[Date "2024.02.20"]
[Round "3"]
[White "DmitriiZakurdaev"]
[Black "Joachim100x"]
[Result "0-1"]
[WhiteElo "2433"]
[BlackElo "2289"]
[TimeControl "180+1"]
[EndTime "8:26:57 PST"]
[Termination "Joachim100x won by resignation"]

1. d4 {[%clk 0:03:00.9]} 1... d5 {[%clk 0:02:59.8]} 2. c4 {[%clk 0:03:01.1]}
2... e6 {[%clk 0:03:00.1]} 3. Nc3 {[%clk 0:03:01.2]} 3... Nf6 {[%clk 0:03:00.4]}
4. Nf3 {[%clk 0:03:01.5]} 4... c5 {[%clk 0:03:00.3]} 5. cxd5 {[%clk 0:03:01.3]}
5... Nxd5 {[%clk 0:03:00.6]} 6. e4 {[%clk 0:03:01.1]} 6... Nxc3 {[%clk
0:03:00.9]} 7. bxc3 {[%clk 0:03:02]} 7... cxd4 {[%clk 0:03:01.7]} 8. cxd4 {[%clk
0:03:02.6]} 8... Bb4+ {[%clk 0:03:02.3]} 9. Bd2 {[%clk 0:03:02.5]} 9... Bxd2+
{[%clk 0:03:02.7]} 10. Qxd2 {[%clk 0:03:03.4]} 10... O-O {[%clk 0:03:03.2]} 11.
Bc4 {[%clk 0:03:03.9]} 11... Nc6 {[%clk 0:03:03.3]} 12. O-O {[%clk 0:03:03]}
12... b6 {[%clk 0:03:03.6]} 13. d5 {[%clk 0:02:58.9]} 13... Na5 {[%clk
0:03:02.9]} 14. Bb5 {[%clk 0:02:45.2]} 14... exd5 {[%clk 0:03:02.4]} 15. exd5
{[%clk 0:02:45.9]} 15... Qd6 {[%clk 0:03:00.3]} 16. Rfe1 {[%clk 0:02:34.7]}
16... Bb7 {[%clk 0:03:00.3]} 17. Rad1 {[%clk 0:02:33.3]} 17... Rad8 {[%clk
0:03:00.4]} 18. Qg5 {[%clk 0:02:06.3]} 18... h6 {[%clk 0:02:57.5]} 19. Qh5
{[%clk 0:02:04.2]} 19... Qc5 {[%clk 0:02:56.6]} 20. a4 {[%clk 0:01:26.4]} 20...
Rxd5 {[%clk 0:02:54.6]} 21. Rxd5 {[%clk 0:01:22.6]} 21... Qxd5 {[%clk
0:02:54.8]} 22. Qh3 {[%clk 0:01:17.5]} 22... Bc8 {[%clk 0:02:50.9]} 23. Qg3
{[%clk 0:01:14.5]} 23... Be6 {[%clk 0:02:51]} 24. Qc7 {[%clk 0:01:09.4]} 24...
Qb7 {[%clk 0:02:49.3]} 25. Qd6 {[%clk 0:00:52.7]} 25... a6 {[%clk 0:02:47.8]}
26. Bd3 {[%clk 0:00:49.5]} 26... b5 {[%clk 0:02:37]} 27. Nd4 {[%clk 0:00:34.7]}
27... Nc4 {[%clk 0:02:29.8]} 28. Qb4 {[%clk 0:00:25.7]} 28... Qd5 {[%clk
0:02:25.6]} 29. Nxe6 {[%clk 0:00:19.5]} 29... fxe6 {[%clk 0:02:25.5]} 30. Bxc4
{[%clk 0:00:16.5]} 30... bxc4 {[%clk 0:02:25.3]} 31. Qb6 {[%clk 0:00:16.6]}
31... e5 {[%clk 0:02:24.1]} 32. Qxa6 {[%clk 0:00:16.5]} 32... Qd4 {[%clk
0:02:24.3]} 33. Rf1 {[%clk 0:00:11.7]} 33... c3 {[%clk 0:02:24.5]} 34. Qe6+
{[%clk 0:00:11.7]} 34... Kh8 {[%clk 0:02:24.4]} 35. a5 {[%clk 0:00:11.8]} 35...
c2 {[%clk 0:02:22.2]} 36. h3 {[%clk 0:00:11.2]} 36... Qxf2+ {[%clk 0:02:13.2]}
37. Rxf2 {[%clk 0:00:06.6]} 37... c1=Q+ {[%clk 0:02:12.9]} 38. Kh2 {[%clk
0:00:06.9]} 38... Rxf2 {[%clk 0:02:12.1]} 39. Qe8+ {[%clk 0:00:04.7]} 39... Kh7
{[%clk 0:02:12.1]} 40. Qxe5 {[%clk 0:00:05.6]} 40... Qf4+ {[%clk 0:02:12.2]} 41.
Qxf4 {[%clk 0:00:06]} 41... Rxf4 {[%clk 0:02:12.1]} 0-1

[Event "Early-Titled-Tuesday-Blitz-February-20-2024"]
[Site "Chess.com"]
[Date "2024.02.20"]
[Round "3"]
[White "Perecke"]
[Black "LionTheLeon_06"]
[Result "0-1"]
[WhiteElo "2507"]
[BlackElo "2879"]
[TimeControl "180+1"]
[EndTime "8:26:59 PST"]
[Termination "LionTheLeon_06 won on time"]

1. d4 {[%clk 0:03:00.9]} 1... a6 {[%clk 0:03:00.7]} 2. Nf3 {[%clk 0:03:00.1]}
2... d5 {[%clk 0:03:00.8]} 3. b3 {[%clk 0:02:59]} 3... Nf6 {[%clk 0:03:01.1]} 4.
Bb2 {[%clk 0:02:59]} 4... Bf5 {[%clk 0:03:01.4]} 5. e3 {[%clk 0:02:58.8]} 5...
e6 {[%clk 0:03:02]} 6. Ne5 {[%clk 0:02:58.4]} 6... Nbd7 {[%clk 0:03:01.7]} 7.
Bd3 {[%clk 0:02:56.2]} 7... Bxd3 {[%clk 0:03:01.4]} 8. cxd3 {[%clk 0:02:41.4]}
8... Nxe5 {[%clk 0:03:01.3]} 9. dxe5 {[%clk 0:02:41.2]} 9... Nd7 {[%clk
0:03:02.2]} 10. O-O {[%clk 0:02:40.8]} 10... Be7 {[%clk 0:03:02.8]} 11. Nd2
{[%clk 0:02:39.7]} 11... O-O {[%clk 0:03:03]} 12. e4 {[%clk 0:02:40]} 12... Nc5
{[%clk 0:02:57.8]} 13. d4 {[%clk 0:02:17.4]} 13... Nxe4 {[%clk 0:02:51.4]} 14.
Nxe4 {[%clk 0:02:18]} 14... dxe4 {[%clk 0:02:52.3]} 15. Qg4 {[%clk 0:02:15.7]}
15... Qd5 {[%clk 0:02:44.2]} 16. Rfe1 {[%clk 0:02:10.7]} 16... c5 {[%clk
0:02:38.1]} 17. Qxe4 {[%clk 0:01:54.9]} 17... Rfd8 {[%clk 0:02:16.5]} 18. Rad1
{[%clk 0:01:24.8]} 18... Qxe4 {[%clk 0:02:15]} 19. Rxe4 {[%clk 0:01:25.7]} 19...
Rac8 {[%clk 0:02:15.4]} 20. Rc1 {[%clk 0:01:18.2]} 20... cxd4 {[%clk 0:02:06.6]}
21. Rc4 {[%clk 0:00:20.5]} 21... Rxc4 {[%clk 0:02:02.7]} 22. bxc4 {[%clk
0:00:21.4]} 22... d3 {[%clk 0:02:03.3]} 23. Re1 {[%clk 0:00:12.6]} 23... Rc8
{[%clk 0:02:03.7]} 24. Rd1 {[%clk 0:00:04.5]} 24... Rxc4 {[%clk 0:02:03.6]} 25.
Rxd3 {[%clk 0:00:05.1]} 25... Rc2 {[%clk 0:02:03.3]} 26. Rb3 {[%clk 0:00:05.4]}
26... b5 {[%clk 0:02:02.2]} 27. g3 {[%clk 0:00:04.7]} 27... g5 {[%clk
0:02:01.1]} 28. Kg2 {[%clk 0:00:04.1]} 28... g4 {[%clk 0:01:55.9]} 29. Kf1
{[%clk 0:00:03.2]} 29... Bc5 {[%clk 0:01:53.7]} 30. Ba3 {[%clk 0:00:01.5]} 30...
Rxf2+ {[%clk 0:01:47.6]} 31. Ke1 {[%clk 0:00:01.6]} 31... Rc2 {[%clk 0:01:43.6]}
0-1

[Event "Early-Titled-Tuesday-Blitz-February-20-2024"]
[Site "Chess.com"]
[Date "2024.02.20"]
[Round "3"]
[White "Magic-Nelwyn"]
[Black "GelmanAlexander"]
[Result "0-1"]
[WhiteElo "2482"]
[BlackElo "2757"]
[TimeControl "180+1"]
[EndTime "8:26:59 PST"]
[Termination "GelmanAlexander won by resignation"]

1. e4 {[%clk 0:03:00.9]} 1... c5 {[%clk 0:02:58.4]} 2. c3 {[%clk 0:03:00.9]}
2... e6 {[%clk 0:02:57.6]} 3. d4 {[%clk 0:03:01.1]} 3... b6 {[%clk 0:02:57.2]}
4. Nf3 {[%clk 0:02:59.4]} 4... Bb7 {[%clk 0:02:57.5]} 5. Bd3 {[%clk 0:02:59.8]}
5... Nf6 {[%clk 0:02:57.6]} 6. Nbd2 {[%clk 0:02:55.6]} 6... d5 {[%clk
0:02:57.4]} 7. e5 {[%clk 0:02:52.8]} 7... Nfd7 {[%clk 0:02:57.5]} 8. O-O {[%clk
0:02:51.6]} 8... Nc6 {[%clk 0:02:57.2]} 9. Re1 {[%clk 0:02:49.7]} 9... g5 {[%clk
0:02:54.6]} 10. h3 {[%clk 0:02:43.1]} 10... h5 {[%clk 0:02:53]} 11. Nf1 {[%clk
0:02:17.3]} 11... g4 {[%clk 0:02:41.3]} 12. hxg4 {[%clk 0:02:08.7]} 12... hxg4
{[%clk 0:02:42.2]} 13. Ng5 {[%clk 0:02:08.6]} 13... Rg8 {[%clk 0:02:19.8]} 14.
Qxg4 {[%clk 0:01:43.9]} 14... Be7 {[%clk 0:02:08.1]} 15. f4 {[%clk 0:01:34.6]}
15... cxd4 {[%clk 0:02:03.4]} 16. Qh5 {[%clk 0:01:12.7]} 16... Bxg5 {[%clk
0:02:02.9]} 17. fxg5 {[%clk 0:00:59.5]} 17... dxc3 {[%clk 0:01:52.9]} 18. Qh7
{[%clk 0:00:39.1]} 18... Rxg5 {[%clk 0:01:44.9]} 19. Bxg5 {[%clk 0:00:23.5]}
19... Qxg5 {[%clk 0:01:43.8]} 20. Qh8+ {[%clk 0:00:18.4]} 20... Ke7 {[%clk
0:01:40.8]} 21. Qh3 {[%clk 0:00:16.4]} 21... cxb2 {[%clk 0:01:38.2]} 22. Rab1
{[%clk 0:00:16.5]} 22... Ncxe5 {[%clk 0:01:33.7]} 23. Be2 {[%clk 0:00:15]} 23...
d4 {[%clk 0:01:26.1]} 24. Rxb2 {[%clk 0:00:11.8]} 24... Rg8 {[%clk 0:01:25]} 25.
Bb5 {[%clk 0:00:10.1]} 25... Nf3+ {[%clk 0:01:21]} 0-1

[Event "Early-Titled-Tuesday-Blitz-February-20-2024"]
[Site "Chess.com"]
[Date "2024.02.20"]
[Round "3"]
[White "Orest_Vovk"]
[Black "nj123456"]
[Result "1-0"]
[WhiteElo "2657"]
[BlackElo "2445"]
[TimeControl "180+1"]
[EndTime "8:26:59 PST"]
[Termination "Orest_Vovk won by resignation"]

1. h4 {[%clk 0:02:58.7]} 1... d5 {[%clk 0:02:59.6]} 2. h5 {[%clk 0:02:58.5]}
2... e5 {[%clk 0:02:59]} 3. h6 {[%clk 0:02:58.3]} 3... Nxh6 {[%clk 0:02:59]} 4.
d4 {[%clk 0:02:58.3]} 4... e4 {[%clk 0:02:46.4]} 5. Bxh6 {[%clk 0:02:58.6]} 5...
gxh6 {[%clk 0:02:47.3]} 6. e3 {[%clk 0:02:59.1]} 6... Bf5 {[%clk 0:02:42.1]} 7.
c4 {[%clk 0:02:59.5]} 7... c6 {[%clk 0:02:41.5]} 8. Nc3 {[%clk 0:02:59.2]} 8...
Bg7 {[%clk 0:02:38.3]} 9. Qb3 {[%clk 0:02:59.2]} 9... O-O {[%clk 0:02:20.9]} 10.
cxd5 {[%clk 0:02:55.1]} 10... Bg6 {[%clk 0:02:04.8]} 11. Qxb7 {[%clk 0:02:50.8]}
11... Nd7 {[%clk 0:02:01.2]} 12. dxc6 {[%clk 0:02:43.1]} 12... Nb6 {[%clk
0:01:57.1]} 13. c7 {[%clk 0:02:34.9]} 13... Qg5 {[%clk 0:01:43]} 14. Nh3 {[%clk
0:02:24.3]} 14... Qa5 {[%clk 0:01:42.4]} 15. Qa6 {[%clk 0:02:03]} 15... Qb4
{[%clk 0:01:40.5]} 16. Qb5 {[%clk 0:02:00.8]} 16... Qd6 {[%clk 0:01:38.8]} 17.
Qc5 {[%clk 0:01:48.8]} 17... Qxc5 {[%clk 0:01:34.8]} 18. dxc5 {[%clk 0:01:48.9]}
18... Bxc3+ {[%clk 0:01:35.2]} 19. bxc3 {[%clk 0:01:48.4]} 19... Na4 {[%clk
0:01:36.1]} 20. Ba6 {[%clk 0:01:32.3]} 20... Bf5 {[%clk 0:01:35.4]} 21. g4
{[%clk 0:01:17.9]} 21... Nxc5 {[%clk 0:01:29.5]} 22. gxf5 {[%clk 0:01:12.9]}
22... Nxa6 {[%clk 0:01:29]} 23. Nf4 {[%clk 0:01:05.2]} 23... Nxc7 {[%clk
0:01:28.9]} 24. Rxh6 {[%clk 0:01:04.8]} 24... Rac8 {[%clk 0:01:24.4]} 25. Ke2
{[%clk 0:00:53.8]} 25... Nb5 {[%clk 0:01:07.1]} 26. Rg1+ {[%clk 0:00:52.1]}
26... Kh8 {[%clk 0:01:05.8]} 27. Rgh1 {[%clk 0:00:52.2]} 27... Nxc3+ {[%clk
0:01:05.6]} 28. Kf1 {[%clk 0:00:51.4]} 28... Kg7 {[%clk 0:01:00.5]} 29. f6+
{[%clk 0:00:47.1]} 29... Kg8 {[%clk 0:00:58]} 30. Rxh7 {[%clk 0:00:47.2]} 1-0

[Event "Early-Titled-Tuesday-Blitz-February-20-2024"]
[Site "Chess.com"]
[Date "2024.02.20"]
[Round "3"]
[White "nicolasbatista3"]
[Black "nindjaxx8"]
[Result "0-1"]
[WhiteElo "2415"]
[BlackElo "2632"]
[TimeControl "180+1"]
[EndTime "8:27:05 PST"]
[Termination "nindjaxx8 won by resignation"]

1. d4 {[%clk 0:03:00.9]} 1... d5 {[%clk 0:02:59.9]} 2. c4 {[%clk 0:02:59.7]}
2... e6 {[%clk 0:02:59.9]} 3. Nc3 {[%clk 0:02:59.3]} 3... Nf6 {[%clk 0:02:59.9]}
4. Bg5 {[%clk 0:02:59]} 4... Be7 {[%clk 0:02:59.4]} 5. e3 {[%clk 0:02:58.6]}
5... O-O {[%clk 0:02:58.6]} 6. Nf3 {[%clk 0:02:57.1]} 6... h6 {[%clk 0:02:58.7]}
7. Bh4 {[%clk 0:02:56.3]} 7... b6 {[%clk 0:02:58.5]} 8. cxd5 {[%clk 0:02:55.8]}
8... Nxd5 {[%clk 0:02:59.2]} 9. Bxe7 {[%clk 0:02:55.5]} 9... Nxe7 {[%clk
0:03:00.1]} 10. Bd3 {[%clk 0:02:54.8]} 10... Bb7 {[%clk 0:03:00]} 11. O-O {[%clk
0:02:54.9]} 11... Nd7 {[%clk 0:03:00.2]} 12. Rc1 {[%clk 0:02:53.4]} 12... Nf6
{[%clk 0:02:57]} 13. Ne5 {[%clk 0:02:44.4]} 13... Ned5 {[%clk 0:02:51.3]} 14.
Qe2 {[%clk 0:02:35.4]} 14... a6 {[%clk 0:02:45]} 15. Bb1 {[%clk 0:02:24]} 15...
Nxc3 {[%clk 0:02:25.4]} 16. bxc3 {[%clk 0:02:16]} 16... Qe7 {[%clk 0:02:24.2]}
17. c4 {[%clk 0:02:07.2]} 17... c5 {[%clk 0:02:23.2]} 18. Rfd1 {[%clk
0:02:05.7]} 18... Rfd8 {[%clk 0:02:21.6]} 19. Qb2 {[%clk 0:01:45.7]} 19... Qc7
{[%clk 0:02:12.5]} 20. h3 {[%clk 0:01:33.7]} 20... Rd6 {[%clk 0:02:04.9]} 21.
dxc5 {[%clk 0:01:24.5]} 21... Rxd1+ {[%clk 0:01:55.7]} 22. Rxd1 {[%clk
0:01:25.4]} 22... Qxc5 {[%clk 0:01:56.3]} 23. Nd7 {[%clk 0:01:25.8]} 23... Nxd7
{[%clk 0:01:56.2]} 24. Rxd7 {[%clk 0:01:21.4]} 24... Qc6 {[%clk 0:01:56.7]} 25.
Rxb7 {[%clk 0:00:57.3]} 25... Qxb7 {[%clk 0:01:57.6]} 26. c5 {[%clk 0:00:57.1]}
26... Rb8 {[%clk 0:01:51.8]} 27. Qc2 {[%clk 0:00:55.3]} 27... bxc5 {[%clk
0:01:43]} 28. Qh7+ {[%clk 0:00:54.2]} 28... Kf8 {[%clk 0:01:43.1]} 29. Be4
{[%clk 0:00:54.5]} 29... Qb2 {[%clk 0:01:42.2]} 30. a4 {[%clk 0:00:49.1]} 30...
Ke7 {[%clk 0:01:39.8]} 31. Bf3 {[%clk 0:00:48.5]} 31... Qe5 {[%clk 0:01:34.7]}
32. a5 {[%clk 0:00:46.4]} 32... c4 {[%clk 0:01:34.3]} 33. g3 {[%clk 0:00:44.4]}
33... c3 {[%clk 0:01:33.7]} 34. Qc2 {[%clk 0:00:44]} 34... Rb2 {[%clk 0:01:33]}
35. Qd3 {[%clk 0:00:31]} 35... c2 {[%clk 0:01:33.1]} 36. Qa3+ {[%clk 0:00:31.9]}
36... Kf6 {[%clk 0:01:31.8]} 0-1